fUST/lending_fUST_20241123
["ID","MTS","AMOUNT","RATE_DAILY","PERIOD"]
[343039202,1732305031974,-1000.0,0.000199,2]
[343039203,1732305031984,-500.0,0.00019973,2]
[343039204,1732305031993,-199.46,0.0001999,3]
[343039206,1732305032002,-598.4,0.0001999,3]
[343039207,1732305032012,-335.30612357,0.00019999,2]
[343039208,1732305032022,-198.79423222,0.00019999,2]
[343039210,1732305032031,-192.75563377,0.00019999,2]
[343039212,1732305032042,-160.0,0.0002,2]
[343039214,1732305032052,-300.469148,0.0002,8]
[343039216,1732305032061,-153.0,0.0002,2]
[343039218,1732305032071,-153.0,0.0002,2]
[343039220,1732305032080,-153.0,0.0002,2]
[343039222,1732305032089,-153.0,0.0002,2]
[343039224,1732305032099,-8948.8026589,0.0002,2]
[343039226,1732305032111,-297.0334,0.0002,2]
[343039228,1732305032125,-64800.83643405,0.0002,2]
[343039414,1732305037958,-392.81685789,0.0002,2]
[343039415,1732305037971,-480.99873686,0.0002,2]
[343039416,1732305037982,-1522.88832111,0.0002,2]
[343039417,1732305037994,-615.83906473,0.0002,2]
[343039418,1732305038036,-923.90552088,0.0002,2]
[343039420,1732305040117,-1370.0,0.00019756,2]
[343039421,1732305040130,-7830.34403767,0.00019756,2]
[343039422,1732305040141,-123646.16951623,0.0002,2]
[343039425,1732305044585,-4913.24999995,0.0002,2]
[343039426,1732305044598,-22162.7811836,0.0002,2]
[343039427,1732305044688,-4032.85023656,0.0002,2]
[343039438,1732305045855,-214658.82806924,0.0002,2]
[343039439,1732305045865,-160.0,0.0002,2]
[343039440,1732305045875,-163.75850951,0.00020173,2]
[343039441,1732305045885,-250000.0,0.00020276,2]
[343039442,1732305045895,-315.2488155,0.00020277,2]
[343039443,1732305045905,-23423.10066383,0.00020377,2]
[343039444,1732305045914,-400.0,0.00020447,2]
[343039445,1732305045923,-1000.0,0.00020521,2]
[343039446,1732305045933,-530.0,0.00020752,2]
[343039447,1732305045942,-1107.0,0.00020752,2]
[343039448,1732305045952,-2381.0,0.00020752,2]
[343039449,1732305045961,-500.0,0.00020773,2]
[343039450,1732305045971,-76011.44369654,0.000208,2]
[343039451,1732305045980,-151.0,0.000208,2]
[343039452,1732305045994,-151.0,0.000208,2]
[343039453,1732305046004,-278.079308,0.000208,2]
[343039454,1732305046014,-278.079308,0.000208,2]
[343039455,1732305046024,-151.0,0.000208,2]
[343039456,1732305046033,-2594.46,0.00021,2]
[343039457,1732305046043,-6494.75712407,0.00021,2]
[343039458,1732305046057,-362.57512031,0.00021,5]
[343039459,1732305046067,-261.7122896,0.00021,2]
[343039460,1732305046076,-10274.46547027,0.00021,2]
[343039461,1732305046087,-235.86111338,0.00021,2]
[343039462,1732305046097,-464.82584305,0.00021079,2]
[343039463,1732305046106,-315.24881543,0.00021218,2]
[343039464,1732305046116,-160.9921,0.00021342,2]
[343039465,1732305046126,-456.1639329,0.00021342,2]
[343039466,1732305046135,-398.92,0.0002136,3]
[343039467,1732305046145,-1500.0,0.00021522,2]
[343039468,1732305046155,-3013.3421055,0.00021852,2]
[343039469,1732305046165,-2927.0,0.0002187,2]
[343039470,1732305046175,-25643.45668369,0.00022,2]
[343039471,1732305046186,-160.76244981,0.00022,10]
[343039472,1732305046196,-151.0,0.00022,7]
[343039473,1732305046206,-151.0,0.00022,7]
[343039474,1732305046216,-202.0,0.00022,2]
[343039475,1732305046226,-278.079308,0.00022,7]
[343039476,1732305046237,-278.079308,0.00022,7]
[343039477,1732305046247,-151.0,0.00022,7]
[343039478,1732305046256,-255.03740568,0.0002201,16]
[343039479,1732305046266,-315.24881543,0.0002216,2]
[343039480,1732305046276,-464.82584305,0.00022357,2]
[343039481,1732305046286,-500.0,0.000225,2]
[343039482,1732305046296,-153.212995,0.000226,5]
[343039483,1732305046306,-500.0,0.000227,2]
[343039484,1732305046315,-760.75592894,0.0002282,2]
[343039485,1732305046326,-1008.51973977,0.00022989,2]
[343039486,1732305046336,-500.0,0.00023,5]
[343039487,1732305046346,-242.553526,0.00023,2]
[343039488,1732305046355,-200.0,0.00023,2]
[343039489,1732305046365,-202.0,0.00023014,2]
[343039490,1732305046376,-212.5677706,0.00023014,2]
[343039491,1732305046386,-1000.0,0.00023048,2]
[343039492,1732305046396,-151.0,0.000231,9]
[343039493,1732305046407,-315.24881543,0.00023101,2]
[343039494,1732305046417,-405.42456936,0.000232,2]
[343039495,1732305046428,-1000.0,0.000232,2]
[343039496,1732305046437,-1000.0,0.00023248,2]
[343039497,1732305046449,-262.86,0.00023378,2]
[343039498,1732305046459,-151.0,0.00023527,2]
[343039499,1732305046471,-151.0,0.000236,6]
[343039500,1732305046480,-464.82584305,0.00023636,2]
[343039501,1732305046490,-230.124,0.00023652,4]
[343039502,1732305046501,-527.239,0.00023752,2]
[343039503,1732305046511,-2381.0,0.00023752,2]
[343039504,1732305046521,-285.8906368,0.00023808,2]
[343039505,1732305046531,-151.0,0.00023858,4]
[343039506,1732305046541,-189673.42507625,0.00024,2]
[343040189,1732305243921,400.0,0.00013973,2]
[343040195,1732305672902,387.01228951,0.00026,30]
[343040207,1732305967668,400.0,0.00013973,2]
[343040326,1732306232038,-175.124131,0.00017971,2]
[343040328,1732306232048,-235.8920437,0.00018426,2]
[343040330,1732306232057,-175.124131,0.00018502,2]
[343040332,1732306232067,-297.969552,0.00018505,2]
[343040334,1732306232077,-655.035758,0.00018746,2]
[343040335,1732306232087,-248.0535565,0.00018863,2]
[343040336,1732306232096,-173.065702,0.00019178,2]
[343040337,1732306232106,-163.595031,0.00019178,2]
[343040338,1732306232115,-297.969552,0.0001919,2]
[343040339,1732306232124,-297.969552,0.00019875,2]
[343040340,1732306232133,-797.86,0.0001989,3]
[343040341,1732306232143,-232.57,0.0001989,3]
[343040342,1732306232152,-697.73,0.0001989,3]
[343040343,1732306232162,-300.0,0.00019898,2]
[343040344,1732306232171,-165.99415545,0.00019899,2]
[343040346,1732306232180,-214.17292641,0.00019899,2]
[343040348,1732306232190,-192.75563377,0.00019899,2]
[343040350,1732306232201,-335.30612357,0.00019899,2]
[343040352,1732306232211,-232.74559328,0.00019899,2]
[343040353,1732306232220,-234.14674835,0.000199,2]
[343040356,1732306232229,-250000.0,0.000199,2]
[343040359,1732306232238,-711.11446168,0.000199,2]
[343040360,1732306232247,-1000.0,0.000199,2]
[343040362,1732306232256,-160.0,0.0002,2]
[343040364,1732306232266,-35862.0,0.0002,2]
[343040366,1732306232275,-400.0,0.00020447,2]
[343040368,1732306232288,-2335.01,0.00021,2]
[343040370,1732306232297,-404.843,0.00021152,2]
[343040372,1732306232306,-1082.341,0.00021152,2]
[343040374,1732306232315,-711.11446168,0.0002116,2]
[343040376,1732306232325,-465.14,0.0002126,3]
[343040378,1732306232334,-314.0,0.00022,2]
[343040380,1732306232343,-314.0,0.00022192,2]
[343040382,1732306232353,-151.0,0.000224,10]
[343040384,1732306232362,-711.11446168,0.00022419,2]
[343040386,1732306232371,-151.0,0.000227,6]
[343040388,1732306232380,-189.14928933,0.00022914,2]
[343040390,1732306232390,-239.24407106,0.00022973,2]
[343040392,1732306232399,-500.0,0.00022973,2]
[343040394,1732306232408,-2803482.98,0.00023,5]
[343040396,1732306232418,-314.0,0.00023014,2]
[343040398,1732306232427,-1000.0,0.00023521,2]
[343040400,1732306232437,-189.14928925,0.00023559,2]
[343040402,1732306232446,-5666.37851879,0.00023597,2]
[343040404,1732306232456,-184.099,0.00023624,4]
[343040406,1732306232465,-711.11446168,0.00023679,2]
[343040408,1732306232475,-151.0,0.00023953,4]
[343040410,1732306232484,-240374.64182375,0.00024,2]
[343040412,1732306232493,-1050.0,0.00024,2]
[343040414,1732306232503,-320.0,0.00024164,2]
[343040416,1732306232512,-616.0,0.000242,2]
[343040418,1732306232522,-189.14928925,0.00024204,2]
[343040420,1732306232531,-1506.34291362,0.00024522,2]
[343040422,1732306232541,-176.9520932,0.00024658,2]
[343040424,1732306232551,-380.0,0.00024658,2]
[343040425,1732306232559,-200.0,0.00024658,15]
[343040428,1732306232569,-200.0,0.00024658,2]
[343040429,1732306232579,-500.0,0.00024658,2]
[343040431,1732306232588,-500.0,0.00024658,2]
[343040433,1732306232597,-500.0,0.00024658,2]
[343040435,1732306232607,-400.16497859,0.00024658,2]
[343040437,1732306232616,-41568.49,0.000247,2]
[343040439,1732306232626,-151.0,0.00024751,5]
[343040441,1732306232635,-189.14928925,0.00024848,2]
[343040443,1732306232645,-711.11446168,0.00024938,2]
[343040445,1732306232654,-290.67486232,0.00024973,2]
[343040448,1732306232664,-500.0,0.00024973,2]
[343040450,1732306232673,-66190.63936072,0.00025,2]
[343040452,1732306232686,-494.83,0.00025,2]
[343040454,1732306232698,-360.832,0.00025,2]
[343040457,1732306232714,-12218.50446569,0.00025,2]
[343040459,1732306232723,-300.0,0.00025,2]
[343040461,1732306232733,-300.0,0.00025,2]
[343040463,1732306232742,-273.4,0.00025,2]
[343040465,1732306232751,-300.0,0.00025,2]
[343040467,1732306232760,-300.0,0.00025,2]
[343040469,1732306232769,-273.399999,0.00025,2]
[343040471,1732306232781,-273.4,0.00025,2]
[343040473,1732306232793,-300.0,0.00025,2]
[343040475,1732306232802,-300.0,0.00025,2]
[343040477,1732306232818,-1207.22888557,0.00025,2]
[343040479,1732306232827,-1041.73970692,0.00025,2]
[343040481,1732306232836,-2525.56689743,0.00025,2]
[343040845,1732306238119,-160.0,0.0002,2]
[343040847,1732306238129,-14195.62793005,0.0002475,2]
[343040850,1732306238139,-1951.82600265,0.00025,2]
[343040852,1732306238150,-13138.33431232,0.00025,2]
[343040854,1732306238161,-28930.48148,0.00025,2]
[343040856,1732306238172,-3955.08,0.00025,2]
[343041026,1732306239803,-348479.94515907,0.00025,2]
[343041040,1732306239930,-165.6875203,0.00025,2]
[343041042,1732306239940,-203.66683913,0.00025,2]
[343041044,1732306239950,-45319.09863007,0.00025,2]
[343041046,1732306239960,-10364.0,0.00025,2]
[343041048,1732306239969,-510.51427536,0.00025,2]
[343041050,1732306239980,-347.22767951,0.00025,2]
[343041052,1732306239991,-829.06923153,0.00025,2]
[343041054,1732306240000,-160.0,0.00025,2]
[343041056,1732306240009,-151.0,0.00025,7]
[343041058,1732306240019,-303.35489277,0.00025,2]
[343041060,1732306240028,-151.0,0.00025,7]
[343041062,1732306240040,-222.463447,0.00025,7]
[343041064,1732306240049,-222.463447,0.00025,7]
[343041066,1732306240058,-303.35489277,0.00025,2]
[343041068,1732306240068,-500.0,0.00025,17]
[343041070,1732306240078,-151.0,0.00025,7]
[343041073,1732306240088,-252.761163,0.00025,7]
[343041074,1732306240097,-151.0,0.00025,7]
[343041075,1732306240107,-310.43943851,0.00025012,2]
[343041076,1732306240116,-85901.95338398,0.0002509,2]
[343041379,1732306243015,-34874.87906688,0.0002509,2]
[343041380,1732306243024,-151.0,0.0002509,7]
[343041381,1732306243033,-151.0,0.0002509,7]
[343041382,1732306243044,-222.463447,0.0002509,7]
[343041383,1732306243054,-222.463447,0.0002509,7]
[343041384,1732306243063,-151.0,0.0002509,7]
[343041385,1732306243072,-151.0,0.0002509,7]
[343041387,1732306243081,-303.35489277,0.0002525,2]
[343041388,1732306243091,-303.35489277,0.0002525,2]
[343041389,1732306243100,-900.0,0.00025469,3]
[343041390,1732306243109,-189.14928925,0.00025493,2]
[343041391,1732306243119,-303.35489277,0.000255,2]
[343041392,1732306243128,-303.35489277,0.000255,2]
[343041394,1732306243138,-1260.72265,0.000255,2]
[343041396,1732306243147,-1000.0,0.00025521,2]
[343041398,1732306243156,-151.0,0.0002555,5]
[343041400,1732306243166,-300.0,0.000257,2]
[343041402,1732306243176,-300.0,0.000257,2]
[343041404,1732306243185,-500.0,0.000257,2]
[343041406,1732306243195,-500.0,0.000257,2]
[343041408,1732306243204,-500.0,0.000257,2]
[343041410,1732306243214,-500.0,0.000257,2]
[343041412,1732306243223,-160.0,0.00025742,2]
[343041414,1732306243232,-303.35489277,0.0002575,2]
[343041416,1732306243242,-303.35489277,0.0002575,2]
[343041418,1732306243252,-314.0,0.00025775,2]
[343041420,1732306243262,-300.0,0.000259,2]
[343041422,1732306243271,-500.0,0.00025974,2]
[343041424,1732306243280,-500.0,0.00025974,2]
[343041426,1732306243291,-500.0,0.00025974,2]
[343041428,1732306243301,-52542.77101281,0.00026,2]
[343041430,1732306243310,-529.1019128,0.00026,2]
[343041432,1732306243320,-5789.53343463,0.00026,7]
[343041434,1732306243329,-7842.6915285,0.00026,3]
[343041436,1732306243339,-303.35489277,0.00026,2]
[343041438,1732306243348,-303.35489277,0.00026,2]
[343041440,1732306243357,-500.0,0.00026,20]
[343041442,1732306243367,-1000.0,0.00026,2]
[343041444,1732306243377,-5645.89677131,0.0002611,2]
[343041446,1732306243386,-189.14928925,0.00026138,2]
[343041448,1732306243395,-711.11446168,0.00026198,2]
[343041450,1732306243404,-500.0,0.00026248,2]
[343041452,1732306243414,-500.0,0.00026248,2]
[343041454,1732306243423,-500.0,0.00026248,2]
[343041456,1732306243433,-455.03233915,0.0002625,4]
[343041458,1732306243442,-455.03233915,0.0002625,4]
[343041460,1732306243452,-151.0,0.00026348,6]
[343041462,1732306243462,-660.0,0.00026384,2]
[343041464,1732306243471,-7458.94652043,0.0002649,2]
[343041466,1732306243481,-151.0,0.0002649,7]
[343041468,1732306243491,-222.463447,0.0002649,7]
[343041470,1732306243500,-222.463447,0.0002649,7]
[343041473,1732306243510,-151.0,0.0002649,7]
[343041475,1732306243519,-455.03233915,0.000265,4]
[343041477,1732306243528,-455.03233915,0.000265,4]
[343041479,1732306243539,-500.0,0.00026522,2]
[343041481,1732306243549,-500.0,0.00026522,2]
[343041483,1732306243558,-500.0,0.00026522,2]
[343041485,1732306243568,-1500.0,0.00026522,2]
[343041487,1732306243578,-300.0,0.000267,2]
[343041489,1732306243588,-300.0,0.000267,2]
[343041491,1732306243598,-151.0,0.00026741,7]
[343041493,1732306243608,-160.0,0.00026741,2]
[343041495,1732306243617,-455.03233915,0.0002675,4]
[343041497,1732306243627,-455.03233915,0.0002675,4]
[343041499,1732306243636,-189.14928925,0.00026783,2]
[343041501,1732306243646,-500.0,0.00026796,2]
[343041503,1732306243655,-500.0,0.00026796,2]
[343041505,1732306243665,-500.0,0.00026796,2]
[343041507,1732306243674,-154.32189149,0.00026796,2]
[343041509,1732306243684,-151.77409,0.000268,2]
[343041511,1732306243693,-600.0,0.0002688,2]
[343041513,1732306243702,-16942.07248954,0.000269,2]
[343041515,1732306243711,-25000.0,0.000269,2]
[343041517,1732306243721,-300.0,0.000269,2]
[343041519,1732306243731,-41568.49,0.000269,2]
[343041521,1732306243741,-400.0,0.00026921,2]
[343041523,1732306243750,-2498.04468578,0.00027,2]
[343041525,1732306243760,-15951.63458088,0.00027,31]
[343041527,1732306243769,-151.0,0.00027,7]
[343041529,1732306243778,-455.03233915,0.00027,4]
[343041531,1732306243788,-151.0,0.00027,7]
[343041533,1732306243798,-222.463447,0.00027,7]
[343041535,1732306243808,-222.463447,0.00027,7]
[343041537,1732306243818,-455.03233915,0.00027,4]
[343041539,1732306243830,-500.0,0.00027,23]
[343041541,1732306243839,-151.0,0.00027,7]
[343041543,1732306243849,-951.47396182,0.0002707,2]
[343041545,1732306243859,-500.0,0.0002707,2]
[343041547,1732306243869,-500.0,0.0002707,2]
[343041549,1732306243879,-500.0,0.0002707,2]
[343041551,1732306243888,-151.0,0.00027147,6]
[343041553,1732306243900,-600.0,0.0002716,2]
[343041555,1732306243909,-455.03233915,0.0002725,4]
[343041567,1732306244014,-455.03233915,0.0002725,4]
[343041569,1732306244024,-500.0,0.00027296,10]
[343041571,1732306244033,-500.0,0.00027296,10]
[343041573,1732306244046,-1005.0,0.00027317,2]
[343041575,1732306244056,-1000.0,0.00027343,2]
[343041577,1732306244066,-500.0,0.00027344,2]
[343041579,1732306244076,-500.0,0.00027344,2]
[343041581,1732306244086,-1000.0,0.00027379,2]
[343041583,1732306244096,-1000.0,0.0002738,2]
[343041585,1732306244106,-1000.0,0.00027381,2]
[343041587,1732306244115,-1000.0,0.00027384,2]
[343041589,1732306244125,-1000.0,0.00027384,2]
[343041591,1732306244135,-314.0,0.00027386,2]
[343041593,1732306244145,-1000.0,0.00027394,2]
[343041595,1732306244155,-609.02,0.00027397,2]
[343041598,1732306244164,-500.0,0.00027397,2]
[343041600,1732306244174,-400.0,0.00027397,60]
[343041602,1732306244183,-151.0,0.00027397,7]
[343041604,1732306244193,-151.0,0.00027397,7]
[343041605,1732306244201,-151.0,0.00027397,7]
[343041607,1732306244211,-151.0,0.00027397,7]
[343041609,1732306244220,-995.0,0.00027399,2]
[343041611,1732306244229,-1000.0,0.00027407,2]
[343041613,1732306244239,-1000.0,0.0002741,2]
[343041615,1732306244249,-1000.0,0.00027415,2]
[343041617,1732306244259,-1000.0,0.00027417,2]
[343041619,1732306244268,-189.14928925,0.00027427,2]
[343041621,1732306244278,-995.0,0.00027432,2]
[343041623,1732306244289,-600.0,0.0002744,2]
[343041625,1732306244299,-1000.0,0.00027454,2]
[343041627,1732306244309,-1000.0,0.00027455,2]
[343041630,1732306244319,-711.11446168,0.00027457,2]
[343041631,1732306244328,-2245.37586039,0.000275,7]
[343041633,1732306244338,-998.13044909,0.000275,2]
[343041635,1732306244348,-438.50113322,0.00027516,2]
[343041637,1732306244357,-1000.0,0.00027524,2]
[343041640,1732306244367,-1000.0,0.00027528,2]
[343041642,1732306244377,-1000.0,0.00027549,2]
[343041644,1732306244386,-1000.0,0.00027567,2]
[343041646,1732306244396,-1000.0,0.00027614,2]
[343041648,1732306244405,-314.0,0.00027616,2]
[343041650,1732306244415,-500.0,0.00027618,2]
[343041652,1732306244424,-500.0,0.00027618,2]
[343041654,1732306244433,-1000.0,0.00027618,2]
[343041656,1732306244444,-1000.0,0.00027644,2]
[343041658,1732306244453,-1000.0,0.00027645,2]
[343041660,1732306244463,-1000.0,0.00027645,2]
[343041662,1732306244472,-500.0,0.00027671,2]
[343041664,1732306244482,-445.91,0.00027671,2]
[343041666,1732306244491,-300.0,0.000277,2]
[343041668,1732306244500,-300.0,0.000277,2]
[343041670,1732306244510,-600.0,0.0002772,2]
[343041672,1732306244519,-2000.0,0.0002782,5]
[343041674,1732306244529,-500.0,0.00027892,2]
[343041676,1732306244540,-500.0,0.00027892,2]
[343041678,1732306244550,-300.0,0.000279,2]
[343041680,1732306244560,-25000.0,0.000279,2]
[343041682,1732306244570,-330.0,0.000279,2]
[343041684,1732306244579,-500.0,0.00027945,2]
[343041686,1732306244589,-151.0,0.00027945,7]
[343041688,1732306244599,-1000.0,0.00027961,2]
[343041690,1732306244609,-1168.33433887,0.0002799,7]
[343041692,1732306244618,-234.14674835,0.00028,2]
[343041694,1732306244628,-669941.74957307,0.00028,30]
[343041718,1732306244860,-23088.79673671,0.00028,30]
[343041838,1732306246106,-43180.44,0.0002599,10]
[343041840,1732306246115,-368605.1140889,0.00028,30]
[343043773,1732306662322,400.0,0.00013973,2]
[343043776,1732306777670,11209.34068157,0.00029,120]
[343043827,1732307321459,200.73506089,0.00027,60]
[343043830,1732307360763,400.0,0.00013973,2]
[343043859,1732307432205,-424.55454383,0.00018793,2]
[343043860,1732307432215,-2438.42447993,0.00018793,2]
[343043861,1732307432225,-17.82597624,0.00018893,2]
[343043862,1732307434856,-160.95575456,0.00018893,2]
[343043863,1732307434866,-163.75850951,0.000197,2]
[343043864,1732307434876,-300.0,0.00019798,2]
[343043865,1732307434886,-287.0,0.00019798,2]
[343043866,1732307434896,-500.0,0.00019799,2]
[343043867,1732307435033,-500.0,0.00019799,2]
[343043868,1732307435042,-500.0,0.00019799,2]
[343043869,1732307435052,-500.0,0.00019799,2]
[343043870,1732307435061,-500.0,0.00019799,2]
[343043871,1732307435070,-111.23669974,0.00019799,2]
[343043903,1732307438281,-388.76330026,0.00019799,2]
[343043905,1732307438291,-9.23669974,0.00019799,2]
[343043908,1732307438302,-490.76330026,0.00019799,2]
[343043909,1732307438312,-500.0,0.00019799,2]
[343043912,1732307438321,-376.491082,0.00019799,2]
[343043914,1732307438331,-500.0,0.00019799,2]
[343043917,1732307438340,-500.0,0.00019799,2]
[343043920,1732307438350,-500.0,0.00019799,2]
[343043923,1732307438358,-500.0,0.00019799,2]
[343043925,1732307438367,-500.0,0.00019799,2]
[343043927,1732307438377,-500.0,0.00019799,2]
[343043929,1732307438386,-500.0,0.00019799,2]
[343043931,1732307438395,-370.47972207,0.00019799,2]
[343043933,1732307438405,-500.0,0.00019799,2]
[343043935,1732307438414,-500.0,0.00019799,2]
[343043937,1732307438424,-500.0,0.00019799,2]
[343043939,1732307438433,-500.0,0.00019799,2]
[343043941,1732307438442,-500.0,0.00019799,2]
[343043943,1732307438451,-500.0,0.00019799,2]
[343043945,1732307438461,-500.0,0.00019799,2]
[343043947,1732307438470,-500.0,0.00019799,2]
[343043949,1732307438479,-500.0,0.00019799,2]
[343043951,1732307438490,-500.0,0.00019799,2]
[343043953,1732307438499,-500.0,0.00019799,2]
[343043955,1732307438509,-500.0,0.00019799,2]
[343043957,1732307438518,-500.0,0.00019799,2]
[343043959,1732307438529,-500.0,0.00019799,2]
[343043961,1732307438538,-234.14674836,0.000198,2]
[343043963,1732307438547,-17279.94453804,0.000198,2]
[343044028,1732307443381,-13331.04323779,0.000198,2]
[343044029,1732307443393,-9131.15272031,0.000198,2]
[343044030,1732307443405,-210257.85950386,0.000198,2]
[343044031,1732307443414,-9243.79851839,0.000198,2]
[343044071,1732307446112,-1905.66061421,0.000198,2]
[343044254,1732307474729,186.036,0.0002957,120]
[343044257,1732307608239,917.07802028,0.00029615,120]
[343044260,1732308035047,200.0,0.00027,120]
[343044261,1732308035369,200.0,0.000276,120]
[343044262,1732308035681,200.0,0.000282,120]
[343044263,1732308036035,200.0,0.000288,120]
[343044264,1732308046347,399.193747,0.00013973,2]
[343044354,1732308632535,-175.124131,0.00018257,2]
[343044356,1732308632547,-306.468566,0.00018441,2]
[343044358,1732308632560,-300.0,0.00018697,2]
[343044360,1732308632569,-78.453425,0.00018698,2]
[343044693,1732308638344,-221.546575,0.00018698,2]
[343044694,1732308638358,-921.567059,0.00018699,2]
[343044695,1732308638371,-94.886366,0.00018714,2]
[343044707,1732308640331,-8290.24098106,0.00018714,2]
[343044711,1732308643298,-987.73547562,0.00018714,2]
[343044712,1732308643309,-9372.86282268,0.00019097,2]
[343044713,1732308643319,-173.065702,0.00019178,2]
[343044714,1732308643329,-192.24372,0.00019178,2]
[343044715,1732308643338,-591.43907666,0.00019284,2]
[343044716,1732308643348,-9372.86282268,0.00019306,2]
[343044717,1732308643358,-921.567059,0.00019384,2]
[343044718,1732308643367,-341.80388694,0.00019492,2]
[343044719,1732308643376,-9372.86282271,0.0001959,2]
[343044720,1732308643386,-5057.75212025,0.000196,2]
[343044721,1732308643395,-171.40523735,0.00019683,2]
[343044722,1732308643405,-510.38,0.0001969,3]
[343044723,1732308643414,-255.19,0.0001969,3]
[343044724,1732308643423,-765.6,0.0001969,3]
[343044725,1732308643433,-500.0,0.00019699,2]
[343044726,1732308643443,-500.0,0.00019699,2]
[343044727,1732308643452,-430.72123133,0.00019699,2]
[343044728,1732308643461,-263.38663579,0.00019699,2]
[343044729,1732308643471,-500.0,0.00019699,2]
[343044730,1732308643481,-500.0,0.00019699,2]
[343044731,1732308643490,-500.0,0.00019699,2]
[343044732,1732308643500,-500.0,0.00019699,2]
[343044733,1732308643510,-500.0,0.00019699,2]
[343044734,1732308643521,-500.0,0.00019699,2]
[343044735,1732308643530,-500.0,0.00019699,2]
[343044736,1732308643540,-234.01322545,0.00019699,2]
[343044737,1732308643551,-500.0,0.00019699,2]
[343044738,1732308643564,-384.01645744,0.00019699,2]
[343044739,1732308643573,-500.0,0.00019699,2]
[343044740,1732308643583,-500.0,0.00019699,2]
[343044741,1732308643592,-164.06137092,0.00019699,2]
[343044742,1732308643603,-500.0,0.00019699,2]
[343044743,1732308643613,-442.32963019,0.00019699,2]
[343044744,1732308643624,-500.0,0.00019699,2]
[343044745,1732308643634,-500.0,0.00019699,2]
[343044746,1732308643644,-423.43018138,0.00019699,2]
[343044747,1732308643653,-500.0,0.00019699,2]
[343044748,1732308643663,-300.0,0.00019699,2]
[343044749,1732308643673,-398.73974873,0.00019699,2]
[343044750,1732308643682,-335.30612357,0.00019699,2]
[343044751,1732308643692,-406.92856018,0.00019699,2]
[343044752,1732308643702,-52819.19239911,0.000197,2]
[343044753,1732308643714,-4778.25395727,0.000197,2]
[343044754,1732308643725,-8542.8267846,0.000197,2]
[343044768,1732308646238,-1007.0000015,0.000197,2]
[343044771,1732308702433,399.23406,0.00013973,2]
[343044773,1732308905342,498.72,0.00029615,120]
[343044775,1732309364469,379.272357,0.00013973,2]
[343044907,1732309832430,-300.0,0.0001784,2]
[343044909,1732309832440,-2404.949969,0.00017841,2]
[343044915,1732309832489,-7813.5331832,0.00017841,2]
[343044917,1732309832498,-306.468567,0.00018022,2]
[343044945,1732309832700,-605.158572,0.00018022,2]
[343044948,1732309832720,-248.0535565,0.00018027,2]
[343044950,1732309832730,-2598.2009921,0.0001834,2]
[343044952,1732309832740,-605.158572,0.00018707,2]
[343044954,1732309832749,-500.0,0.00018873,2]
[343044956,1732309832759,-500.0,0.00018873,2]
[343044958,1732309832768,-500.0,0.00018873,2]
[343044960,1732309832779,-417.75890104,0.00018873,2]
[343044962,1732309832788,-500.0,0.00018873,2]
[343044964,1732309832798,-500.0,0.00018873,2]
[343044966,1732309832807,-500.0,0.00018873,2]
[343044968,1732309832817,-500.0,0.00018873,2]